Cogmind - Beta 16.1 @@@ ROGUE MODE // 2026.02.12 @ 20:44:43 Player: Drago Result: Self-destructed Performance ------------- Evolutions (1) 500 Regions Visited (2) 400 Robots Destroyed (10) 50 Value Destroyed (224) 224 Prototype IDs (2) 40 Alien Tech Used (0) 0 Bonus (0) 0 TOTAL SCORE: 1214 Bonus ------- None Cogmind --------- Core Integrity 10/400 Matter 300/300 Energy 100/100 System Corruption 2% Temperature Cool (0) Movement Core (50) Location -9/Materials Parts ------- > --- POWER (1) -------- (None) > --- PROPULSION (3) --- (None) > --- UTILITY (3) ------ (None) > --- WEAPON (2) ------- (None) > --- INVENTORY (5) ---- Light Ion Engine Light Nuclear Core Wheel Large Matter Pod (150) Light Armor Plating Peak State ------------ > --- POWER ------------ (None) > --- PROPULSION ------- (None) > --- UTILITY ---------- Seismic Detector > --- WEAPON ----------- Particle Gun Welding Torch > --- INVENTORY -------- Light Ion Engine Light Nuclear Core Wheel Large Matter Pod Light Armor Plating [Rating: 4] Favorites ----------- Power None Propulsion None Utility Seismic Detector Device Seismic Detector Processor Targeting Computer Weapon Small Laser Energy Gun Small Laser Special Weapon Welding Torch Build | -11 -10 -9 ------- Run | Yrd Mat Mat Slots Evolved 2 | . . 2 Power . | . . . Propulsion 1 | . . 1 Utility 1 | . . 1 Weapon . | . . . Parts Attached 9 | 3 6 . Power . | . . . Engine . | . . . Core . | . . . Reactor . | . . . Propulsion . | . . . Treads . | . . . Leg . | . . . Wheel . | . . . Hover . | . . . Flight . | . . . Utility 3 | 1 2 . Device 2 | 1 1 . Storage . | . . . Processor 1 | . 1 . Hackware . | . . . Protection . | . . . Artifact . | . . . Weapon 6 | 2 4 . Energy Gun 5 | 2 3 . Energy Cannon . | . . . Ballistic Gun . | . . . Ballistic Cannon . | . . . Launcher . | . . . Special Weapon 1 | . 1 . Impact Weapon . | . . . Slashing Weapon . | . . . Piercing Weapon . | . . . Special Melee Weapon . | . . . Unidentified Prototypes . | . . . Parts Lost 7 | . 5 2 Power . | . . . Propulsion . | . . . Utility 3 | . 2 1 Weapon 4 | . 3 1 Highest Loss Streak 2 | . 2 1 To Critical Strikes . | . . . Average Backups 4 | 1 4 5 Power 1 | . 1 2 Propulsion . | . 1 1 Utility 1 | . 1 2 Weapon . | . . . Tool/Special . | . . . Unused Backups 5 | . . 5 Power 2 | . . 2 Propulsion 1 | . . 1 Utility 2 | . . 2 Weapon . | . . . Tool/Special . | . . . Average Slot Usage (%) 30 | . 33 14 Device 7 | . 9 . Processor 2 | . . 10 Energy Gun 20 | . 23 4 Peak Build Rating 4 | 3 4 2 Average Rating 2 | 1 2 1 On Entrance 1 | . 3 2 Avg Prop Armor Cover (%) . | . . . Naked Turns 13 | . . 13 Heaviest Build 3 | 3 3 1 Greatest Support 3 | 3 3 3 Greatest Overweight (x) . | . . . Average Overweight (x) . | . . . Largest Inventory Capacity 5 | 5 5 5 Average Capacity 5 | 5 5 5 Most Carried 5 | 2 5 5 Average Carried 4 | 1 4 5 Final Capacity 5 | 5 5 5 Final Carried 5 | 2 5 5 Class Distribution -------------------- 100% | Mutant Dominant Class ---------------- Mutant | -10/Materials Mutant | -9/Materials Resources | -11 -10 -9 ----------- Run | Yrd Mat Mat Matter Collected 435 | 220 215 . Remotely . | . . . Salvage Created 370 | 21 349 . Parts 23 | 2 21 . Haulers Intercepted . | . . . Recyclers Shooed 1 | . 1 . Parts Field Recycled . | . . . Retrieved Matter . | . . . Parts Self-Destructed . | . . . Prevented . | . . . Parts Restored . | . . . Kills | -11 -10 -9 ------- Run | Yrd Mat Mat Combat Hostiles Destroyed 5 | . 5 . Guns 5 | . 5 . Classes Destroyed 5 | 1 4 . Builder 1 | . 1 . Tunneler 2 | 1 1 . Recycler 1 | . 1 . Watcher 1 | . 1 . Grunt 5 | . 5 . Best Kill Streak 5 | 1 5 . Combat Bots Only 2 | . 2 . Max Kills in Single Turn 1 | 1 1 . Gunslinging . | . . . Exploded . | . . . Melee . | . . . Uniques/NPCs Destroyed . | . . . Combat | -11 -10 -9 -------- Run | Yrd Mat Mat Hostile Shots Fired 110 | . 66 44 Missed 36 | . 22 14 Hits 74 | . 44 30 Projectile 74 | . 44 30 Critical Strikes 1 | . . 1 Damage Taken 975 | . 558 417 Core 629 | . 239 390 Absorbed by Shields . | . . . Core Remaining (%) 52 | 100 4 . Volleys Fired 42 | 2 39 1 Largest 2 | 2 2 1 Hottest 80 | 80 80 40 Shots Fired 70 | 4 65 1 Gun 69 | 4 64 1 Cannon . | . . . Launcher . | . . . Special 1 | . 1 . Kinetic . | . . . Thermal 70 | 4 65 1 Explosive . | . . . Electromagnetic . | . . . Robot Hit Streak 16 | 1 16 . Robot Miss Streak 4 | 1 4 1 Penetration Max . | . . . Secondary Targets 1 | . 1 . Max Gunslinging Chain 1 | . 1 . Shots Hit Robots 41 | 2 39 . Core Hits 17 | 1 16 . Critical Kills . | . . . Critical Parts Destroyed . | . . . Critical Strikes . | . . . Melee Attacks . | . . . Impact . | . . . Slashing . | . . . Piercing . | . . . Sneak Attacks . | . . . Combat Hostiles . | . . . Follow-up Attacks . | . . . Damage Inflicted 511 | 23 456 32 Guns 462 | 23 439 . Cannons . | . . . Explosions . | . . . Melee . | . . . Ramming 47 | . 15 32 Kinetic . | . . . Thermal 464 | 23 441 . Explosive . | . . . Electromagnetic . | . . . Impact . | . . . Slashing . | . . . Piercing . | . . . Highest Corruption 2 | . 2 2 Average Corruption 2 | . 2 2 Corruption Purged . | . . . Corruption Blocked . | . . . Effects 4 | . 4 . Message Errors 1 | . 1 . Matter Fused 1 | . 1 . Data Loss (major) 1 | . 1 . Misfires 1 | . 1 . Overload Shots . | . . . Overflow Damage . | . . . Projectiles . | . . . Explosions . | . . . Melee . | . . . Knockbacks 1 | . 1 . Impact 1 | . 1 . Kinetic . | . . . Secondary . | . . . Self-Inflicted Damage 22 | . 7 15 Shots . | . . . Rammed 8 | . 3 5 Targets Rammed 8 | . 3 5 Kicked . | . . . Crushed . | . . . Highest Temperature 61 | 31 61 . Average Temperature 9 | 16 9 . Received Heat Transfer 513 | . 306 207 Siege Activations . | . . . Martial Activations . | . . . Shielding Activations . | . . . Robots Disrupted . | . . . Combat Hostiles . | . . . Robots Corrupted . | . . . Combat Hostiles . | . . . Parts Fried . | . . . Impact Corruptions . | . . . Robots Melted . | . . . Combat Hostiles . | . . . Parts Melted 2 | . 2 . Heat Transferred 1025 | 50 975 . Parts Sabotaged . | . . . Parts Stolen . | . . . Parts Stripped . | . . . Power Chain Reactions . | . . . Alert | -11 -10 -9 ------- Run | Yrd Mat Mat Maximum Alert Level . | . . . Low Security (%) 100 | 100 100 100 Level 1 . | . . . Level 2 . | . . . Level 3 . | . . . Level 4 . | . . . Level 5 . | . . . High Security . | . . . Max Security . | . . . Peak Influence 114 | 5 114 54 Initial 48 | . 3 48 Average 47 | 1 55 24 Influence Increases 385 | 5 374 6 Destroy 0b10 Robot/C 100 | . 100 . Destroy 0b10 Robot/NC 25 | 5 20 . Destroy Leader 22 | . 22 . Successful Hack 28 | . 22 6 Partial Spotted 15 | . 15 . Lose Combat Pursuer 195 | . 195 . Influence Decreases 385 | . 265 120 Entered New Map 68 | . 2 66 Time Decay 267 | . 223 44 Lost Part 50 | . 40 10 Squads Dispatched 4 | . 1 3 Investigation 1 | . . 1 Extermination . | . . . Reinforcement 3 | . 1 2 Assault . | . . . Garrison . | . . . Intercept . | . . . Searches Triggered . | . . . Construction Impeded . | . . . Haulers Reinforced . | . . . Active Scanning Responses . | . . . Cargo Convoy Interrupts . | . . . Stealth | -11 -10 -9 --------- Run | Yrd Mat Mat Distress Signals 4 | . 2 2 Communications Jammed . | . . . Distress Signals . | . . . Times Spotted 35 | . 25 10 Peak Tracking Total 8 | . 5 8 Tactical Retreats 7 | . 7 . Traps | -11 -10 -9 ------- Run | Yrd Mat Mat Traps Triggered 2 | . 1 1 Indirectly . | . . . Trap Hack Attempts . | . . . Triggered . | . . . Disarmed . | . . . Reprogrammed . | . . . Reused . | . . . Traps Extracted . | . . . Installed . | . . . Triggered . | . . . Machines | -11 -10 -9 ---------- Run | Yrd Mat Mat Machines Disabled . | . . . Max in Single Turn . | . . . Machines Repaired . | . . . Machines Dismantled . | . . . Machines Sabotaged . | . . . Overloaded Fab Kills . | . . . Hacking | -11 -10 -9 --------- Run | Yrd Mat Mat Machines Accessed 9 | . 7 2 Terminals 7 | . 6 1 Fabricators . | . . . Repair Stations . | . . . Recycling Units 2 | . 1 1 Scanalyzers . | . . . Garrison Access . | . . . Total Hacks 26 | . 21 5 Successful 17 | . 13 4 Failed 8 | . 7 1 Catastrophic 1 | . 1 . Database Lockouts 1 | . 1 . Manual 16 | . 13 3 Terminals 21 | . 20 1 Fabricators . | . . . Repair Stations . | . . . Recycling Units 5 | . 1 4 Scanalyzers . | . . . Garrison Access . | . . . Terminal Hacks 10 | . 9 1 Robot Analysis 2 | . 2 . Prototype ID Bank 1 | . 1 . Locate Traps 4 | . 4 . Zone Layout 3 | . 2 1 Fabricator Hacks . | . . . Repair Station Hacks . | . . . Recycling Unit Hacks 2 | . 1 1 Report Inventory 2 | . 1 1 Scanalyzer . | . . . Garrison Access Hacks . | . . . Unauthorized Hacks 5 | . 3 2 Terminals 3 | . 3 . Botnet 3 | . 3 . Fabricators . | . . . Repair Stations . | . . . Recycling Units 2 | . . 2 Monitor 1 | . . 1 Recyclers 1 | . . 1 Scanalyzers . | . . . Garrison Access . | . . . Data Cores Recovered . | . . . Used . | . . . Hacking Detections 7 | . 6 1 Full Trace Events . | . . . Feedback Events . | . . . Feedback Blocked . | . . . Robot Schematics Acquired . | . . . Robots Built . | . . . Authchips . | . . . Time . | . . . Total Robot Build Rating . | . . . Part Schematics Acquired . | . . . Parts Built . | . . . Authchips . | . . . Time . | . . . Total Part Build Rating . | . . . Part Studies Acquired . | . . . Parts Repaired . | . . . Time . | . . . Parts Recycled . | . . . Recycled Matter . | . . . Retrieved Matter . | . . . Retrieved Components . | . . . Parts Scanalyzed . | . . . Part Schematics Acquired . | . . . Parts Damaged . | . . . Bothacking | -11 -10 -9 ------------ Run | Yrd Mat Mat Used RIF Installer . | . . . Robots Hacked . | . . . Non-combat . | . . . Combat . | . . . Robot Hacks Applied . | . . . Relay Couplers Released . | . . . Fabnet Peak Effective % . | . . . Robots Rewired . | . . . Allies Hacked . | . . . Hacks Repelled . | . . . Allies | -11 -10 -9 -------- Run | Yrd Mat Mat Total Allies . | . . . Largest Group . | . . . Highest-Rated Group . | . . . Highest-Rated Ally . | . . . Total Orders . | . . . Ally Attacks . | . . . Total Damage . | . . . Kills . | . . . Allies Corrupted . | . . . Allies Melted . | . . . Intel | -11 -10 -9 ------- Run | Yrd Mat Mat Active Infowar (turns) 327 | 5 322 . Seismic 327 | 5 322 . Robot Analysis Total 2 | . 2 . Derelict Logs Recovered . | . . . Drone Launches . | . . . Drone Recoveries . | . . . Exploration | -11 -10 -9 ------------- Run | Yrd Mat Mat Turns Passed 652 | 33 505 114 Spaces Moved 959 | 41 708 210 Core 959 | 41 708 210 Treads . | . . . Legs . | . . . Wheels . | . . . Hover . | . . . Flight . | . . . Fastest Speed 50 | 50 50 50 Average Speed 50 | 50 50 50 Slowest Speed 50 | 50 50 50 Overloaded Moves . | . . . Propulsion Burnouts . | . . . Robots Hopped . | . . . Potential Cave-ins . | . . . Cave-ins Triggered . | . . . Exploration Rate (%) 37 | 3 92 17 Regions Visited 2 Branch Regions . Pre-discovered Areas . | . . . Known Exits Taken . | . . . Unknown Exits Taken 2 | 1 1 . Scrap Searched . | . . . Spaces Dug . | . . . Terrain Destroyed . | . . . Melee . | . . . Projectile . | . . . AOE . | . . . Terrain Rammed . | . . . Walls Destroyed . | . . . Machines Disabled . | . . . Actions | -11 -10 -9 --------- Run | Yrd Mat Mat Total 1056 | 47 792 217 Wait 33 | . 32 1 Move 957 | 40 707 210 Hop . | . . . Pick Up 5 | 2 3 . Fast Attach 9 | 3 6 . Attach . | . . . Detach . | . . . Swap . | . . . Drop 2 | . 2 . Fire 42 | 2 39 1 Melee . | . . . Ram 8 | . 3 5 Kick . | . . . Crush . | . . . Escape Stasis . | . . . Rewire . | . . . Trap . | . . . Miscellaneous . | . . . Route ------- -11/Scrapyard -10/Materials (discovered 5 exits: *Mat x3 / [*Min x2]) -9/Materials History --------- Turn | Location | Event 9 | -11/Scrapyard | Discovered new exit (range 16) 34 | -11/Scrapyard | Entered Materials 81 | -10/Materials | Discovered new exit (range 19) 81 | -10/Materials | Discovered new exit (range 20) 238 | -10/Materials | Discovered new exit (range 11) 238 | -10/Materials | Central database locked down 322 | -10/Materials | Build established: Mutant 335 | -10/Materials | Core integrity fell below 50% 443 | -10/Materials | Discovered new exit (range 8) 504 | -10/Materials | Discovered new exit (range 16) 530 | -10/Materials | Core integrity fell below 20% 539 | -10/Materials | Entered another Materials area 539 | -9/Materials | Evolved 2 slots: Propulsion x1, Utility x1 624 | -9/Materials | Core integrity fell below 50% 644 | -9/Materials | Core integrity fell below 20% 653 | -9/Materials | Self-destructed Last Messages --------------- 00591_ ALERT: Hostiles spotted, dispatching reinforcements to Terminal M010. 00591_ O-16 Technician locks terminal. 00618_ Triggered Alarm Trap. 00618_ An alarm sounds. 00618_ ALERT: Alarm triggered, dispatching investigation squad. 00621_ K-01 Serf collects debris. 00623_ Connecting with Terminal... >>Layout(Zone) Retrieving Zone 1Q layout... Downloaded map data. 00636_ K-01 Serf collects debris. 00640_ Slammed into G-34 Mercenary. 00640_ Targeting Computer destroyed. 00640_ System corrupted by crushing effect (+2). 00641_ Slammed into G-34 Mercenary. 00641_ K-01 Serf collects debris. 00642_ Slammed into G-34 Mercenary. 00649_ W-16 Scout sends out distress signal. Map ----- +----------------------------------------------------+ | | | | | | | ??????????????????????????????############# | | ??????????????????????????????# ! | | ????????????????######????????# """ """ | | ???????????###### #????????# """"""""" | | ???????????# #????????# """"" " | | ???????????# #?######## | | ########???###### #?# ###+######### | | # #????????## ##?#" """ ## ######### | | # #?????????# #??#T """ + # # | | # " #?????????# #??#" """ ## / [ # | | # """ #?????????# #??# ## # # | | # """ ######???## ##?# ## ######### | | # """ # ##### #######/## #??????? | | # "" + #??????? | | # """ # T T %%% T #??????? | | # "" # ##### ########## #??##### | | # """ ###########+###??????### #??# | | # " #?# ######## #??# | | # #?# # # !#??# | | #* #?# # """ ##!!!!##??# | | ########?# # """ ########??# | | ?????????# # """ #????????## | | ?????????# @ # #????????# | | ?????????# #[ """ #????????## | | ?????????#########g### """ #?????????# | | ?????????????????#% # """ #?????????###+# | | ?????????????????#o / ############# | | ?????????????????# # """ + | | ?????????????????# # """ ############# | | ???????########### # """ #???????????### | | ???????# # # #?????????????? | | ???????# # #############????????? | | ???????# """ """ # ?????? | | ???????# """ """ + ?????? | | ???????# """ """ # ?????? | | ???????# # #### ###+####??????? | | ???????# # #???? #?????????????? | | ???????# # #????? #?????????????? | | ???????########### #??????#?????????????? | | ?????????????????# #????????????????????? | | ?????????????????# #????????????????????? | | ?????????????????# #????????????????????? | | ????????########## #????????????????????? | | ????????# # #????????????????????? | | ????????#"" """ # #????????????????????? | | ????????#"Y """ # #????????????????????? | | ????????#"" """ !# #????????????????????? | +----------------------------------------------------+ Best States ------------- Heat Dissipation 28 Energy Generation 5 Energy Capacity 100 Matter Stores 300 Matter Capacity 300 Sight Range 16 Terrain Scan Density 10 Evasion (%) 50 Targeting Accuracy 5 Item Schematics ----------------- None Robot Schematics ------------------ None Fabricated ------------ Nothing Repaired ---------- Nothing Studied --------- None Alien Tech Used ----------------- None Achievements -------------- None Challenges ------------ None Game ------ Seed SlugAntisysArmor Manual? 0 Play Time 00:13:19 Cumulative 144.5 hours Start 2026.02.12 @ 20:33:22 End 2026.02.12 @ 20:44:43 Sessions 1 Manual Loads 0 Difficulty Rogue Special Mode None Game No. 119 Rogue 119 Adventurer 0 Explorer 0 Win Type - Total 2 Types 2/0/0/0/0/0/0/0/0/0 Lore% 66 Gallery% 60 Achievement% 41 Wizard Run 0 Options --------- Layout 1 ASCII 0 Keyboard 0 Movement Numpad Keybinds 0 Fullscreen 1 Font 18/SmallcapsGlow Map View 50x40 Zoom Use 0% Tactical HUD 1 Map Filters NONE Filters NONE Steam 1 RUN: d733c52d-c169-444c-bc23-42d091fb0a5d